{"text_format":"3","workbook":"xlsx","n_sheets":3,"sheets":["Mėnesio biudžeto ataskaita","Mėnesio išlaidos","Papildomi duomenys"],"not_rendered":{"charts":1,"external_links":1,"defined_names":4,"pivot_tables":2},"read":"whole","date_system":"1900"}

{"sheet":"Mėnesio biudžeto ataskaita","index":0,"n_rows":34,"n_cols":14,"rows_kept":34,"merged":[[7,1,10,1],[7,5,10,5],[7,6,10,6],[12,1,16,1],[12,5,16,5],[12,6,16,6]]}
[null,"Biudžeto apžvalga",{"$nulls":7},"Biudžeto suvestinė"]
[null,"Balansas"]
[null,"Numatomas balansas","(Numatomas balansas atėmus išlaidas)",{"$nulls":3},{"$f":"D17-SUM(BudgetDetails[Numatomos išlaidos])","v":{"v":1585,"d":"1,585 EUR"}}]
[null,"Faktinis balansas ","(Faktinis balansas atėmus išlaidas)",{"$nulls":3},{"$f":"D11-SUM(BudgetDetails[Faktinės išlaidos])","v":{"v":1740,"d":"1,740 EUR"}}]
[null,"Skirtumas","(Faktinis balansas atėmus numatomą balansą)",{"$nulls":3},{"$f":"G4-G3","v":{"v":155,"d":"155 EUR"}}]
[]
[null,"Pajamos",{"$nulls":3},"Išlaidos",{"$nulls":3},"Dešiniuoju pelės mygtuku spustelėkite „PivotTable“, tada spustelėkite Atnaujinti, kad atnaujintumėte"]
[null,"FAKTINĖS","1 pajamos",{"v":5800,"d":"5,800 EUR"},null,"FAKTINĖS",{"$f":"SUM(BudgetDetails[Faktinės išlaidos])","v":{"v":7860,"d":"7,860 EUR"}}]
[null,null,"2 pajamos",{"v":2300,"d":"2,300 EUR"},{"$nulls":6},"Kategorija","Numatomos išlaidos ","Faktinės išlaidos ","Skirtumas "]
[null,null,"Papildomos pajamos",{"v":1500,"d":"1,500 EUR"},{"$nulls":6},"Vaikai",{"v":140,"d":"140 EUR"},{"v":140,"d":"140 EUR"},{"v":0,"d":"0 EUR"}]
[null,null,"Bendrosios pajamos",{"$f":"SUM(D8:D10)","v":{"v":9600,"d":"9,600 EUR"}}]
[{"$nulls":10},"Pramogos",{"v":400,"d":"400 EUR"},{"v":358,"d":"358 EUR"},{"v":42,"d":"42 EUR"}]
[null,"NUMATOMOS",{"$nulls":3},"NUMATOMOS",{"$f":"SUM(BudgetDetails[Numatomos išlaidos])","v":{"v":7915,"d":"7,915 EUR"}}]
[null,null,"1 pajamos",{"v":6000,"d":"6,000 EUR"},{"$nulls":6},"Maistas",{"v":1100,"d":"1,100 EUR"},{"v":1320,"d":"1,320 EUR"},{"v":-220,"d":"-220 EUR"}]
[null,null,"2 pajamos",{"v":1000,"d":"1,000 EUR"}]
[null,null,"Papildomos pajamos",{"v":2500,"d":"2,500 EUR"},{"$nulls":6},"Dovanos ir labdara",{"v":100,"d":"100 EUR"},{"v":125,"d":"125 EUR"},{"v":-25,"d":"-25 EUR"}]
[null,null,"Bendrosios pajamos",{"$f":"SUM(D14:D16)","v":{"v":9500,"d":"9,500 EUR"}}]
[{"$nulls":10},"Būstas",{"v":2830,"d":"2,830 EUR"},{"v":2702,"d":"2,702 EUR"},{"v":128,"d":"128 EUR"}]
[]
[{"$nulls":10},"Draudimas",{"v":900,"d":"900 EUR"},{"v":900,"d":"900 EUR"},{"v":0,"d":"0 EUR"}]
[]
[{"$nulls":10},"Paskolos",{"v":200,"d":"200 EUR"},{"v":200,"d":"200 EUR"},{"v":0,"d":"0 EUR"}]
[]
[{"$nulls":10},"Asmens priežiūra",{"v":150,"d":"150 EUR"},{"v":140,"d":"140 EUR"},{"v":10,"d":"10 EUR"}]
[]
[{"$nulls":10},"Gyvūnai",{"v":170,"d":"170 EUR"},{"v":100,"d":"100 EUR"},{"v":70,"d":"70 EUR"}]
[]
[{"$nulls":10},"Santaupos arba investicijos",{"v":200,"d":"200 EUR"},{"v":200,"d":"200 EUR"},{"v":0,"d":"0 EUR"}]
[]
[{"$nulls":10},"Mokesčiai",{"v":300,"d":"300 EUR"},{"v":300,"d":"300 EUR"},{"v":0,"d":"0 EUR"}]
[]
[{"$nulls":10},"Transportas",{"v":1425,"d":"1,425 EUR"},{"v":1375,"d":"1,375 EUR"},{"v":50,"d":"50 EUR"}]
[]
[{"$nulls":10},"Bendroji suma",{"v":7915,"d":"7,915 EUR"},{"v":7860,"d":"7,860 EUR"},{"v":55,"d":"55 EUR"}]

{"sheet":"Mėnesio išlaidos","index":1,"n_rows":62,"n_cols":7,"rows_kept":62}
[null,"Mėnesio išlaidos"]
[null,"Aprašas","Kategorija","Numatomos išlaidos","Faktinės išlaidos","Skirtumas","Faktinių išlaidų apžvalga"]
[null,"Užklasinė veikla","Vaikai",{"v":40,"d":"40 EUR"},{"v":40,"d":"40 EUR"},{"$f":"BudgetDetails[[#This Row],[Numatomos išlaidos]]-BudgetDetails[[#This Row],[Faktinės išlaidos]]","v":{"v":0,"d":"0 EUR"}},{"$f":"BudgetDetails[[#This Row],[Faktinės išlaidos]]","v":{"v":40,"d":"40 EUR"}}]
[null,"Medicininės išlaidos","Vaikai",null,null,{"$f":"BudgetDetails[[#This Row],[Numatomos išlaidos]]-BudgetDetails[[#This Row],[Faktinės išlaidos]]","v":{"v":0,"d":"0 EUR"}},{"$f":"BudgetDetails[[#This Row],[Faktinės išlaidos]]","v":{"v":0,"d":"0 EUR"}}]
[null,"Mokykliniai reikmenys","Vaikai",null,null,{"$f":"BudgetDetails[[#This Row],[Numatomos išlaidos]]-BudgetDetails[[#This Row],[Faktinės išlaidos]]","v":{"v":0,"d":"0 EUR"}},{"$f":"BudgetDetails[[#This Row],[Faktinės išlaidos]]","v":{"v":0,"d":"0 EUR"}}]
[null,"Mokymo įstaigos mokestis","Vaikai",{"v":100,"d":"100 EUR"},{"v":100,"d":"100 EUR"},{"$f":"BudgetDetails[[#This Row],[Numatomos išlaidos]]-BudgetDetails[[#This Row],[Faktinės išlaidos]]","v":{"v":0,"d":"0 EUR"}},{"$f":"BudgetDetails[[#This Row],[Faktinės išlaidos]]","v":{"v":100,"d":"100 EUR"}}]
[null,"Koncertai","Pramogos",{"v":50,"d":"50 EUR"},{"v":40,"d":"40 EUR"},{"$f":"BudgetDetails[[#This Row],[Numatomos išlaidos]]-BudgetDetails[[#This Row],[Faktinės išlaidos]]","v":{"v":10,"d":"10 EUR"}},{"$f":"BudgetDetails[[#This Row],[Faktinės išlaidos]]","v":{"v":40,"d":"40 EUR"}}]
[null,"Teatras","Pramogos",{"v":200,"d":"200 EUR"},{"v":150,"d":"150 EUR"},{"$f":"BudgetDetails[[#This Row],[Numatomos išlaidos]]-BudgetDetails[[#This Row],[Faktinės išlaidos]]","v":{"v":50,"d":"50 EUR"}},{"$f":"BudgetDetails[[#This Row],[Faktinės išlaidos]]","v":{"v":150,"d":"150 EUR"}}]
[null,"Filmai","Pramogos",{"v":50,"d":"50 EUR"},{"v":28,"d":"28 EUR"},{"$f":"BudgetDetails[[#This Row],[Numatomos išlaidos]]-BudgetDetails[[#This Row],[Faktinės išlaidos]]","v":{"v":22,"d":"22 EUR"}},{"$f":"BudgetDetails[[#This Row],[Faktinės išlaidos]]","v":{"v":28,"d":"28 EUR"}}]
[null,"Muzika (CD, atsisiuntimai ir t. t.)","Pramogos",{"v":50,"d":"50 EUR"},{"v":30,"d":"30 EUR"},{"$f":"BudgetDetails[[#This Row],[Numatomos išlaidos]]-BudgetDetails[[#This Row],[Faktinės išlaidos]]","v":{"v":20,"d":"20 EUR"}},{"$f":"BudgetDetails[[#This Row],[Faktinės išlaidos]]","v":{"v":30,"d":"30 EUR"}}]
[null,"Sporto renginiai","Pramogos",{"v":0,"d":"0 EUR"},{"v":40,"d":"40 EUR"},{"$f":"BudgetDetails[[#This Row],[Numatomos išlaidos]]-BudgetDetails[[#This Row],[Faktinės išlaidos]]","v":{"v":-40,"d":"-40 EUR"}},{"$f":"BudgetDetails[[#This Row],[Faktinės išlaidos]]","v":{"v":40,"d":"40 EUR"}}]
[null,"Vaizdo įrašai / DVD (įsigijimas)","Pramogos",{"v":20,"d":"20 EUR"},{"v":50,"d":"50 EUR"},{"$f":"BudgetDetails[[#This Row],[Numatomos išlaidos]]-BudgetDetails[[#This Row],[Faktinės išlaidos]]","v":{"v":-30,"d":"-30 EUR"}},{"$f":"BudgetDetails[[#This Row],[Faktinės išlaidos]]","v":{"v":50,"d":"50 EUR"}}]
[null,"Vaizdo įrašai / DVD (nuoma)","Pramogos",{"v":30,"d":"30 EUR"},{"v":20,"d":"20 EUR"},{"$f":"BudgetDetails[[#This Row],[Numatomos išlaidos]]-BudgetDetails[[#This Row],[Faktinės išlaidos]]","v":{"v":10,"d":"10 EUR"}},{"$f":"BudgetDetails[[#This Row],[Faktinės išlaidos]]","v":{"v":20,"d":"20 EUR"}}]
[null,"Restoranai","Maistas",{"v":1000,"d":"1,000 EUR"},{"v":1200,"d":"1,200 EUR"},{"$f":"BudgetDetails[[#This Row],[Numatomos išlaidos]]-BudgetDetails[[#This Row],[Faktinės išlaidos]]","v":{"v":-200,"d":"-200 EUR"}},{"$f":"BudgetDetails[[#This Row],[Faktinės išlaidos]]","v":{"v":1200,"d":"1,200 EUR"}}]
[null,"Maisto prekės","Maistas",{"v":100,"d":"100 EUR"},{"v":120,"d":"120 EUR"},{"$f":"BudgetDetails[[#This Row],[Numatomos išlaidos]]-BudgetDetails[[#This Row],[Faktinės išlaidos]]","v":{"v":-20,"d":"-20 EUR"}},{"$f":"BudgetDetails[[#This Row],[Faktinės išlaidos]]","v":{"v":120,"d":"120 EUR"}}]
[null,"1 labdara","Dovanos ir labdara",{"v":75,"d":"75 EUR"},{"v":100,"d":"100 EUR"},{"$f":"BudgetDetails[[#This Row],[Numatomos išlaidos]]-BudgetDetails[[#This Row],[Faktinės išlaidos]]","v":{"v":-25,"d":"-25 EUR"}},{"$f":"BudgetDetails[[#This Row],[Faktinės išlaidos]]","v":{"v":100,"d":"100 EUR"}}]
[null,"2 labdara","Dovanos ir labdara",{"v":25,"d":"25 EUR"},{"v":25,"d":"25 EUR"},{"$f":"BudgetDetails[[#This Row],[Numatomos išlaidos]]-BudgetDetails[[#This Row],[Faktinės išlaidos]]","v":{"v":0,"d":"0 EUR"}},{"$f":"BudgetDetails[[#This Row],[Faktinės išlaidos]]","v":{"v":25,"d":"25 EUR"}}]
[null,"1 dovanos","Dovanos ir labdara",null,null,{"$f":"BudgetDetails[[#This Row],[Numatomos išlaidos]]-BudgetDetails[[#This Row],[Faktinės išlaidos]]","v":{"v":0,"d":"0 EUR"}},{"$f":"BudgetDetails[[#This Row],[Faktinės išlaidos]]","v":{"v":0,"d":"0 EUR"}}]
[null,"2 dovanos","Dovanos ir labdara",null,null,{"$f":"BudgetDetails[[#This Row],[Numatomos išlaidos]]-BudgetDetails[[#This Row],[Faktinės išlaidos]]","v":{"v":0,"d":"0 EUR"}},{"$f":"BudgetDetails[[#This Row],[Faktinės išlaidos]]","v":{"v":0,"d":"0 EUR"}}]
[null,"Televizija","Būstas",{"v":100,"d":"100 EUR"},{"v":100,"d":"100 EUR"},{"$f":"BudgetDetails[[#This Row],[Numatomos išlaidos]]-BudgetDetails[[#This Row],[Faktinės išlaidos]]","v":{"v":0,"d":"0 EUR"}},{"$f":"BudgetDetails[[#This Row],[Faktinės išlaidos]]","v":{"v":100,"d":"100 EUR"}}]
[null,"Elektra","Būstas",{"v":45,"d":"45 EUR"},{"v":50,"d":"50 EUR"},{"$f":"BudgetDetails[[#This Row],[Numatomos išlaidos]]-BudgetDetails[[#This Row],[Faktinės išlaidos]]","v":{"v":-5,"d":"-5 EUR"}},{"$f":"BudgetDetails[[#This Row],[Faktinės išlaidos]]","v":{"v":50,"d":"50 EUR"}}]
[null,"Degalai","Būstas",{"v":300,"d":"300 EUR"},{"v":400,"d":"400 EUR"},{"$f":"BudgetDetails[[#This Row],[Numatomos išlaidos]]-BudgetDetails[[#This Row],[Faktinės išlaidos]]","v":{"v":-100,"d":"-100 EUR"}},{"$f":"BudgetDetails[[#This Row],[Faktinės išlaidos]]","v":{"v":400,"d":"400 EUR"}}]
[null,"Namų valymo paslaugos","Būstas",{"v":200,"d":"200 EUR"},null,{"$f":"BudgetDetails[[#This Row],[Numatomos išlaidos]]-BudgetDetails[[#This Row],[Faktinės išlaidos]]","v":{"v":200,"d":"200 EUR"}},{"$f":"BudgetDetails[[#This Row],[Faktinės išlaidos]]","v":{"v":0,"d":"0 EUR"}}]
[null,"Techninė priežiūra","Būstas",{"v":200,"d":"200 EUR"},{"v":150,"d":"150 EUR"},{"$f":"BudgetDetails[[#This Row],[Numatomos išlaidos]]-BudgetDetails[[#This Row],[Faktinės išlaidos]]","v":{"v":50,"d":"50 EUR"}},{"$f":"BudgetDetails[[#This Row],[Faktinės išlaidos]]","v":{"v":150,"d":"150 EUR"}}]
[null,"Būsto paskola arba nuoma","Būstas",{"v":1700,"d":"1,700 EUR"},{"v":1700,"d":"1,700 EUR"},{"$f":"BudgetDetails[[#This Row],[Numatomos išlaidos]]-BudgetDetails[[#This Row],[Faktinės išlaidos]]","v":{"v":0,"d":"0 EUR"}},{"$f":"BudgetDetails[[#This Row],[Faktinės išlaidos]]","v":{"v":1700,"d":"1,700 EUR"}}]
[null,"Dujos","Būstas",null,null,{"$f":"BudgetDetails[[#This Row],[Numatomos išlaidos]]-BudgetDetails[[#This Row],[Faktinės išlaidos]]","v":{"v":0,"d":"0 EUR"}},{"$f":"BudgetDetails[[#This Row],[Faktinės išlaidos]]","v":{"v":0,"d":"0 EUR"}}]
[null,"Interneto paslaugos","Būstas",{"v":100,"d":"100 EUR"},{"v":100,"d":"100 EUR"},{"$f":"BudgetDetails[[#This Row],[Numatomos išlaidos]]-BudgetDetails[[#This Row],[Faktinės išlaidos]]","v":{"v":0,"d":"0 EUR"}},{"$f":"BudgetDetails[[#This Row],[Faktinės išlaidos]]","v":{"v":100,"d":"100 EUR"}}]
[null,"Telefonas (mobilusis)","Būstas",{"v":60,"d":"60 EUR"},{"v":60,"d":"60 EUR"},{"$f":"BudgetDetails[[#This Row],[Numatomos išlaidos]]-BudgetDetails[[#This Row],[Faktinės išlaidos]]","v":{"v":0,"d":"0 EUR"}},{"$f":"BudgetDetails[[#This Row],[Faktinės išlaidos]]","v":{"v":60,"d":"60 EUR"}}]
[null,"Telefonas (namų)","Būstas",{"v":35,"d":"35 EUR"},{"v":39,"d":"39 EUR"},{"$f":"BudgetDetails[[#This Row],[Numatomos išlaidos]]-BudgetDetails[[#This Row],[Faktinės išlaidos]]","v":{"v":-4,"d":"-4 EUR"}},{"$f":"BudgetDetails[[#This Row],[Faktinės išlaidos]]","v":{"v":39,"d":"39 EUR"}}]
[null,"Atsargos","Būstas",{"v":40,"d":"40 EUR"},{"v":55,"d":"55 EUR"},{"$f":"BudgetDetails[[#This Row],[Numatomos išlaidos]]-BudgetDetails[[#This Row],[Faktinės išlaidos]]","v":{"v":-15,"d":"-15 EUR"}},{"$f":"BudgetDetails[[#This Row],[Faktinės išlaidos]]","v":{"v":55,"d":"55 EUR"}}]
[null,"Atliekų šalinimas ir perdirbimas","Būstas",{"v":25,"d":"25 EUR"},{"v":22,"d":"22 EUR"},{"$f":"BudgetDetails[[#This Row],[Numatomos išlaidos]]-BudgetDetails[[#This Row],[Faktinės išlaidos]]","v":{"v":3,"d":"3 EUR"}},{"$f":"BudgetDetails[[#This Row],[Faktinės išlaidos]]","v":{"v":22,"d":"22 EUR"}}]
[null,"Vanduo ir kanalizacija","Būstas",{"v":25,"d":"25 EUR"},{"v":26,"d":"26 EUR"},{"$f":"BudgetDetails[[#This Row],[Numatomos išlaidos]]-BudgetDetails[[#This Row],[Faktinės išlaidos]]","v":{"v":-1,"d":"-1 EUR"}},{"$f":"BudgetDetails[[#This Row],[Faktinės išlaidos]]","v":{"v":26,"d":"26 EUR"}}]
[null,"Sveikatos","Draudimas",{"v":400,"d":"400 EUR"},{"v":400,"d":"400 EUR"},{"$f":"BudgetDetails[[#This Row],[Numatomos išlaidos]]-BudgetDetails[[#This Row],[Faktinės išlaidos]]","v":{"v":0,"d":"0 EUR"}},{"$f":"BudgetDetails[[#This Row],[Faktinės išlaidos]]","v":{"v":400,"d":"400 EUR"}}]
[null,"Namų","Draudimas",{"v":400,"d":"400 EUR"},{"v":400,"d":"400 EUR"},{"$f":"BudgetDetails[[#This Row],[Numatomos išlaidos]]-BudgetDetails[[#This Row],[Faktinės išlaidos]]","v":{"v":0,"d":"0 EUR"}},{"$f":"BudgetDetails[[#This Row],[Faktinės išlaidos]]","v":{"v":400,"d":"400 EUR"}}]
[null,"Gyvybės","Draudimas",{"v":100,"d":"100 EUR"},{"v":100,"d":"100 EUR"},{"$f":"BudgetDetails[[#This Row],[Numatomos išlaidos]]-BudgetDetails[[#This Row],[Faktinės išlaidos]]","v":{"v":0,"d":"0 EUR"}},{"$f":"BudgetDetails[[#This Row],[Faktinės išlaidos]]","v":{"v":100,"d":"100 EUR"}}]
[null,"1 kredito kortelė","Paskolos",{"v":200,"d":"200 EUR"},{"v":200,"d":"200 EUR"},{"$f":"BudgetDetails[[#This Row],[Numatomos išlaidos]]-BudgetDetails[[#This Row],[Faktinės išlaidos]]","v":{"v":0,"d":"0 EUR"}},{"$f":"BudgetDetails[[#This Row],[Faktinės išlaidos]]","v":{"v":200,"d":"200 EUR"}}]
[null,"2 kredito kortelė","Paskolos",null,null,{"$f":"BudgetDetails[[#This Row],[Numatomos išlaidos]]-BudgetDetails[[#This Row],[Faktinės išlaidos]]","v":{"v":0,"d":"0 EUR"}},{"$f":"BudgetDetails[[#This Row],[Faktinės išlaidos]]","v":{"v":0,"d":"0 EUR"}}]
[null,"3 kredito kortelė","Paskolos",null,null,{"$f":"BudgetDetails[[#This Row],[Numatomos išlaidos]]-BudgetDetails[[#This Row],[Faktinės išlaidos]]","v":{"v":0,"d":"0 EUR"}},{"$f":"BudgetDetails[[#This Row],[Faktinės išlaidos]]","v":{"v":0,"d":"0 EUR"}}]
[null,"Asmeninė","Paskolos",null,null,{"$f":"BudgetDetails[[#This Row],[Numatomos išlaidos]]-BudgetDetails[[#This Row],[Faktinės išlaidos]]","v":{"v":0,"d":"0 EUR"}},{"$f":"BudgetDetails[[#This Row],[Faktinės išlaidos]]","v":{"v":0,"d":"0 EUR"}}]
[null,"Studento","Paskolos",null,null,{"$f":"BudgetDetails[[#This Row],[Numatomos išlaidos]]-BudgetDetails[[#This Row],[Faktinės išlaidos]]","v":{"v":0,"d":"0 EUR"}},{"$f":"BudgetDetails[[#This Row],[Faktinės išlaidos]]","v":{"v":0,"d":"0 EUR"}}]
[null,"Drabužiai","Asmens priežiūra",{"v":150,"d":"150 EUR"},{"v":140,"d":"140 EUR"},{"$f":"BudgetDetails[[#This Row],[Numatomos išlaidos]]-BudgetDetails[[#This Row],[Faktinės išlaidos]]","v":{"v":10,"d":"10 EUR"}},{"$f":"BudgetDetails[[#This Row],[Faktinės išlaidos]]","v":{"v":140,"d":"140 EUR"}}]
[null,"Drabužių valykla","Asmens priežiūra",null,null,{"$f":"BudgetDetails[[#This Row],[Numatomos išlaidos]]-BudgetDetails[[#This Row],[Faktinės išlaidos]]","v":{"v":0,"d":"0 EUR"}},{"$f":"BudgetDetails[[#This Row],[Faktinės išlaidos]]","v":{"v":0,"d":"0 EUR"}}]
[null,"Plaukai / nagai","Asmens priežiūra",null,null,{"$f":"BudgetDetails[[#This Row],[Numatomos išlaidos]]-BudgetDetails[[#This Row],[Faktinės išlaidos]]","v":{"v":0,"d":"0 EUR"}},{"$f":"BudgetDetails[[#This Row],[Faktinės išlaidos]]","v":{"v":0,"d":"0 EUR"}}]
[null,"Sveikatos klubas","Asmens priežiūra",null,null,{"$f":"BudgetDetails[[#This Row],[Numatomos išlaidos]]-BudgetDetails[[#This Row],[Faktinės išlaidos]]","v":{"v":0,"d":"0 EUR"}},{"$f":"BudgetDetails[[#This Row],[Faktinės išlaidos]]","v":{"v":0,"d":"0 EUR"}}]
[null,"Medicininės išlaidos","Asmens priežiūra",null,null,{"$f":"BudgetDetails[[#This Row],[Numatomos išlaidos]]-BudgetDetails[[#This Row],[Faktinės išlaidos]]","v":{"v":0,"d":"0 EUR"}},{"$f":"BudgetDetails[[#This Row],[Faktinės išlaidos]]","v":{"v":0,"d":"0 EUR"}}]
[null,"Maistas","Gyvūnai",{"v":150,"d":"150 EUR"},{"v":75,"d":"75 EUR"},{"$f":"BudgetDetails[[#This Row],[Numatomos išlaidos]]-BudgetDetails[[#This Row],[Faktinės išlaidos]]","v":{"v":75,"d":"75 EUR"}},{"$f":"BudgetDetails[[#This Row],[Faktinės išlaidos]]","v":{"v":75,"d":"75 EUR"}}]
[null,"Priežiūra","Gyvūnai",{"v":20,"d":"20 EUR"},{"v":25,"d":"25 EUR"},{"$f":"BudgetDetails[[#This Row],[Numatomos išlaidos]]-BudgetDetails[[#This Row],[Faktinės išlaidos]]","v":{"v":-5,"d":"-5 EUR"}},{"$f":"BudgetDetails[[#This Row],[Faktinės išlaidos]]","v":{"v":25,"d":"25 EUR"}}]
[null,"Medicininės išlaidos","Gyvūnai",null,null,{"$f":"BudgetDetails[[#This Row],[Numatomos išlaidos]]-BudgetDetails[[#This Row],[Faktinės išlaidos]]","v":{"v":0,"d":"0 EUR"}},{"$f":"BudgetDetails[[#This Row],[Faktinės išlaidos]]","v":{"v":0,"d":"0 EUR"}}]
[null,"Žaislai","Gyvūnai",null,null,{"$f":"BudgetDetails[[#This Row],[Numatomos išlaidos]]-BudgetDetails[[#This Row],[Faktinės išlaidos]]","v":{"v":0,"d":"0 EUR"}},{"$f":"BudgetDetails[[#This Row],[Faktinės išlaidos]]","v":{"v":0,"d":"0 EUR"}}]
[null,"Investicinė sąskaita","Santaupos arba investicijos",{"v":200,"d":"200 EUR"},{"v":200,"d":"200 EUR"},{"$f":"BudgetDetails[[#This Row],[Numatomos išlaidos]]-BudgetDetails[[#This Row],[Faktinės išlaidos]]","v":{"v":0,"d":"0 EUR"}},{"$f":"BudgetDetails[[#This Row],[Faktinės išlaidos]]","v":{"v":200,"d":"200 EUR"}}]
[null,"Pensijos sąskaita","Santaupos arba investicijos",null,null,{"$f":"BudgetDetails[[#This Row],[Numatomos išlaidos]]-BudgetDetails[[#This Row],[Faktinės išlaidos]]","v":{"v":0,"d":"0 EUR"}},{"$f":"BudgetDetails[[#This Row],[Faktinės išlaidos]]","v":{"v":0,"d":"0 EUR"}}]
[null,"Federaliniai","Mokesčiai",{"v":300,"d":"300 EUR"},{"v":300,"d":"300 EUR"},{"$f":"BudgetDetails[[#This Row],[Numatomos išlaidos]]-BudgetDetails[[#This Row],[Faktinės išlaidos]]","v":{"v":0,"d":"0 EUR"}},{"$f":"BudgetDetails[[#This Row],[Faktinės išlaidos]]","v":{"v":300,"d":"300 EUR"}}]
[null,"Vietos","Mokesčiai",null,null,{"$f":"BudgetDetails[[#This Row],[Numatomos išlaidos]]-BudgetDetails[[#This Row],[Faktinės išlaidos]]","v":{"v":0,"d":"0 EUR"}},{"$f":"BudgetDetails[[#This Row],[Faktinės išlaidos]]","v":{"v":0,"d":"0 EUR"}}]
[null,"Šalies","Mokesčiai",null,null,{"$f":"BudgetDetails[[#This Row],[Numatomos išlaidos]]-BudgetDetails[[#This Row],[Faktinės išlaidos]]","v":{"v":0,"d":"0 EUR"}},{"$f":"BudgetDetails[[#This Row],[Faktinės išlaidos]]","v":{"v":0,"d":"0 EUR"}}]
[null,"Autobuso / taksi mokestis","Transportas",{"v":100,"d":"100 EUR"},{"v":150,"d":"150 EUR"},{"$f":"BudgetDetails[[#This Row],[Numatomos išlaidos]]-BudgetDetails[[#This Row],[Faktinės išlaidos]]","v":{"v":-50,"d":"-50 EUR"}},{"$f":"BudgetDetails[[#This Row],[Faktinės išlaidos]]","v":{"v":150,"d":"150 EUR"}}]
[null,"Kuras","Transportas",{"v":450,"d":"450 EUR"},{"v":400,"d":"400 EUR"},{"$f":"BudgetDetails[[#This Row],[Numatomos išlaidos]]-BudgetDetails[[#This Row],[Faktinės išlaidos]]","v":{"v":50,"d":"50 EUR"}},{"$f":"BudgetDetails[[#This Row],[Faktinės išlaidos]]","v":{"v":400,"d":"400 EUR"}}]
[null,"Draudimas","Transportas",{"v":300,"d":"300 EUR"},{"v":300,"d":"300 EUR"},{"$f":"BudgetDetails[[#This Row],[Numatomos išlaidos]]-BudgetDetails[[#This Row],[Faktinės išlaidos]]","v":{"v":0,"d":"0 EUR"}},{"$f":"BudgetDetails[[#This Row],[Faktinės išlaidos]]","v":{"v":300,"d":"300 EUR"}}]
[null,"Licencijavimas ","Transportas",{"v":25,"d":"25 EUR"},{"v":25,"d":"25 EUR"},{"$f":"BudgetDetails[[#This Row],[Numatomos išlaidos]]-BudgetDetails[[#This Row],[Faktinės išlaidos]]","v":{"v":0,"d":"0 EUR"}},{"$f":"BudgetDetails[[#This Row],[Faktinės išlaidos]]","v":{"v":25,"d":"25 EUR"}}]
[null,"Priežiūra","Transportas",{"v":100,"d":"100 EUR"},{"v":50,"d":"50 EUR"},{"$f":"BudgetDetails[[#This Row],[Numatomos išlaidos]]-BudgetDetails[[#This Row],[Faktinės išlaidos]]","v":{"v":50,"d":"50 EUR"}},{"$f":"BudgetDetails[[#This Row],[Faktinės išlaidos]]","v":{"v":50,"d":"50 EUR"}}]
[null,"Mokesčiai už automobilių statymą","Transportas",null,null,{"$f":"BudgetDetails[[#This Row],[Numatomos išlaidos]]-BudgetDetails[[#This Row],[Faktinės išlaidos]]","v":{"v":0,"d":"0 EUR"}},{"$f":"BudgetDetails[[#This Row],[Faktinės išlaidos]]","v":{"v":0,"d":"0 EUR"}}]
[null,"Įmoka už automobilį","Transportas",{"v":450,"d":"450 EUR"},{"v":450,"d":"450 EUR"},{"$f":"BudgetDetails[[#This Row],[Numatomos išlaidos]]-BudgetDetails[[#This Row],[Faktinės išlaidos]]","v":{"v":0,"d":"0 EUR"}},{"$f":"BudgetDetails[[#This Row],[Faktinės išlaidos]]","v":{"v":450,"d":"450 EUR"}}]
[null,"Suma",null,{"$f":"SUBTOTAL(109,BudgetDetails[Numatomos išlaidos])","v":{"v":7915,"d":"7,915 EUR"}},{"$f":"SUBTOTAL(109,BudgetDetails[Faktinės išlaidos])","v":{"v":7860,"d":"7,860 EUR"}},{"$f":"SUBTOTAL(109,BudgetDetails[Skirtumas])","v":{"v":55,"d":"55 EUR"}}]

{"sheet":"Papildomi duomenys","index":2,"n_rows":15,"n_cols":5,"rows_kept":15}
[null,"Biudžeto apžvalgos diagramos „PivotTable“",null,null,"Biudžeto duomenų kategorijos peržvalgos sąrašas"]
[null,"Kategorija","Kaina",null,"Biudžeto kategorijos peržvalga"]
[null,"Vaikai",140,null,"Asmens priežiūra"]
[null,"Pramogos",358,null,"Būstas"]
[null,"Maistas",1320,null,"Dovanos ir labdara"]
[null,"Dovanos ir labdara",125,null,"Draudimas"]
[null,"Būstas",2702,null,"Gyvūnai"]
[null,"Draudimas",900,null,"Maistas"]
[null,"Paskolos",200,null,"Mokesčiai"]
[null,"Asmens priežiūra",140,null,"Paskolos"]
[null,"Gyvūnai",100,null,"Pramogos"]
[null,"Santaupos arba investicijos",200,null,"Santaupos arba investicijos"]
[null,"Mokesčiai",300,null,"Transportas"]
[null,"Transportas",1375,null,"Vaikai"]
[null,"Bendroji suma",7860]